Workbook

Sheet MSU
B1: Kari Lehto | E1: 7.9.1962
B2: SUPERPESIS | E2: Runkosarja | I2: Kärkilyönnit (KL), pesänvälit | P2: Runkosarja TOP-30 | U2: Alempi loppusarja | AB2: Ylempi loppusarja TOP-10 | AG2: Play off, voitot, voittoprosentti | AL2: Arvo-ottelut | AO2: Mitalit
B3: Vuosi | C3: Sija | D3: Seura | E3: OTT | F3: KUN | G3: LÖI | H3: TOI | I3: KL | J3: 0 > 1 | K3: 1 > 2 | L3: 2 > 3 | M3: 3 > k | N3: KL-% | P3: LÖI | Q3: TOI | R3: L+T | S3: KL | U3: OTT | V3: KUN | W3: LÖI | X3: TOI | Y3: KL | Z3: KL-% | AB3: LÖI | AC3: TOI | AD3: L+T | AE3: KL | AG3: Puolivälierät | AH3: Välierät | AI3: Pronssi | AJ3: Finaalit | AL3: IL | AM3: LL | AN3: hSM | AO3: K | AP3: H | AQ3: P
B4: 1983 | C4: 5. | D4: LaVe | F4: suomensarja | AA4: 0
B5: 1984 | C5: 6. | D5: LaVe | F5: suomensarja
B6: 1985 | C6: 10. | D6: LaVe | F6: suomensarja
B7: 1986 | C7: 9. | D7: ViVe 2 | F7: suomensarja
B8: 1987 | C8: 5. | D8: MyVe | F8: suomensarja
B9: 1988 | C9: 11. | D9: MyVe | F9: suomensarja
B10: 1989 | C10: 1. | D10: Alku | F10: maakuntasarja
B11: 1990 | C11: 1. | D11: Alku | F11: suomensarja | AA11: 0
B12: 1991 | C12: 1. | D12: LP | F12: ykkössarja | AA12: 0
B13: 1992 | C13: 11. | D13: LP | E13: 24 | F13: 0 | G13: 2 | H13: 17 | I13: 42 | J13: 30 | K13: 9 | L13: 1 | M13: 2 | N13: 36.5 % | U13: 3 | V13: 0 | W13: 0 | X13: 1 | Y13: 10 | Z13: 62.5 %
B14: 1993 | C14: 7. | D14: LP | E14: 26 | F14: 1 | G14: 0 | H14: 13 | I14: 33 | J14: 24 | K14: 5 | L14: 3 | M14: 1 | N14: 37.9 % | AA14: 0 | AG14: 1-3 AA
B15: 1994 | C15: 6. | D15: LP | E15: 33 | F15: 0 | G15: 1 | H15: 10 | I15: 51 | J15: 48 | K15: 1 | L15: 1 | M15: 1 | N15: 53.7 % | AA15: 0
B16: 1995 | C16: 10. | D16: JoKo | F16: ykköspesis | AA16: 66
B17: 1996 | C17: 11. | D17: JoKo | F17: ykköspesis
B18: 1997 | C18: 13. | D18: JoKo | F18: ykköspesis
B19: 1998 | C19: 5. | D19: ViVe | F19: ykköspesis | AA19: 0
B20: 1999 | C20: 8. | D20: Vasama | F20: suomensarja
B21: 2000 | C21: 2. | D21: PuPe | F21: ykköspesis | U21: 7 | V21: 0 | W21: 0 | X21: 5 | Y21: 28 | Z21: 70.0 %
B22: 2001 | C22: 1. | D22: PuPe | F22: ykköspesis | U22: 7 | V22: 0 | W22: 0 | X22: 5 | Y22: 14 | Z22: 50.0 %
B23: 2002
B24: 2003 | C24: 10. | D24: Vasama | F24: suomensarja
B25: 2004 | C25: 7. | D25: Viri | F25: suomensarja | AA25: 0
B26: 2005 | C26: 10. | D26: Viri | F26: suomensarja | AA26: 0
B27: **** | AA27: 40
B28: 2008 | C28: 8. | D28: Viri | F28: suomensarja | AA28: 74
B29: Yhteensä | E29: 83 | F29: 1 | G29: 3 | H29: 40 | I29: 126 | J29: 102 | K29: 15 | L29: 5 | M29: 4 | N29: 42.4 % | P29: 0-0-0 | Q29: 0-0-0 | R29: 0-0-0 | S29: 0-0-0 | U29: 17 | V29: 0 | W29: 0 | X29: 11 | Y29: 52 | Z29: 61.9 % | AA29: =SUM(AA3:AA28) -> 180 | AB29: 0-0-0 | AC29: 0-0-0 | AD29: 0-0-0 | AE29: 0-0-0 | AG29: 0/1 | AH29: 0/0 | AI29: 0/0 | AJ29: 0/0 | AL29: =SUM(AL4:AL28) -> 0 | AM29: 0 | AN29: 0 | AO29: 0 | AP29: 0 | AQ29: 0
AG30: 0.0 % | AH30: 0.0 % | AI30: 0.0 % | AJ30: 0.0 %
B31: Pesispörssi | D31: 112.3
B33: URA SUPERISSA | E33: OTT | F33: KUN | G33: LÖI | H33: TOI | I33: KL | K33: ka/L | L33: ka/T | M33: ka/KL | N33: KL-% | P33: ENSIMMÄISET RUNKOSARJASSA | AG33: ENSIMMÄISET PUDOTUSPELEISSÄ | AL33: YLEISÖ
B34: Runkosarja | E34: 83 | F34: 1 | G34: 3 | H34: 40 | I34: 126 | K34: 0.05 | L34: 0.48 | M34: 1.52 | N34: 42.4 % | P34: Ottelu | R34: 03.05. 1992 Lippo - LP 9-3 | X34: 1. ottelu | AA34: 29 v 7 kk 26 pv | AG34: Ottelu | AH34: 1. 18.08. 1993 LP - AA 3-4 | AL34: 1154 | AN34: 30 v 10 kk 11 pv
B35: Ylempi loppusarja | E35: 2 | F35: 0 | G35: 0 | H35: 0 | I35: 2 | K35: 0.00 | L35: 0.00 | M35: 1.00 | N35: 28.6 % | P35: Lyöty | R35: 21.05. 1992 LP - Kiri 10-1 | X35: 5. ottelu | AA35: 29 v 8 kk 14 pv | AG35: Lyöty
B36: Alempi loppusarja | E36: 17 | F36: 0 | G36: 0 | H36: 11 | I36: 52 | K36: 0.00 | L36: 0.65 | M36: 3.06 | N36: 61.9 % | P36: Tuotu | R36: 17.05. 1992 LP - IPV 7-5 | X36: 3. ottelu | AA36: 29 v 8 kk 10 pv | AG36: Tuotu
B37: KAIKKI | E37: 102 | F37: 1 | G37: 3 | H37: 51 | I37: 180 | K37: 0.04 | L37: 0.50 | M37: 1.76 | N37: 46.4 % | P37: Kunnari | R37: 05.08. 1993 Tahko - LP 13-9 | X37: 49. ottelu | AA37: 30 v 10 kk 29 pv | AG37: Kunnari
B39: Seurat | D39: LaVe = Lappajärven Veikot (1911)
D40: MyVe = Mynämäen Vesa (1920)
D41: ViVe = Vimpelin Veto (1934)
D42: Alku = Forssan Alku (1913)
D43: LP = Loimaan Palloilijat (1931)
D44: JoKo = Jokioisten Koetus (1902)
D45: PuPe = Puijon Pesäpallo (1999)
D46: Vasama = Suonenjoen Vasama (1908)
D47: Viri = Leppävirran Viri (1937)

Sheet MYP, MSS
B1: Kari Lehto | E1: 7.9.1962
B2: YKKÖSPESIS | E2: Runkosarja | L2: Runkosarja TOP-10 | Q2: Jatkosarjat | X2: SUOMENSARJA | AA2: Runkosarja | AH2: Runkosarja TOP-10 | AM2: Jatkosarjat
B3: Vuosi | C3: Sija | D3: Seura | E3: OTT | F3: KUN | G3: LÖI | H3: TOI | I3: KL | J3: KL-% | L3: LÖI | M3: TOI | N3: L+T | O3: KL | Q3: OTT | R3: KUN | S3: LÖI | T3: TOI | U3: KL | V3: KL-% | X3: Vuosi | Y3: Sija | Z3: Seura | AA3: OTT | AB3: KUN | AC3: LÖI | AD3: TOI | AE3: KL | AF3: KL-% | AH3: LÖI | AI3: TOI | AJ3: L+T | AK3: KL | AM3: OTT | AN3: KUN | AO3: LÖI | AP3: TOI | AQ3: KL | AR3: KL-%
X4: 1983 | Y4: 5. | Z4: LaVe | AA4: 14 | AB4: 0 | AC4: 6 | AD4: 11
X5: 1984 | Y5: 6. | Z5: LaVe | AA5: 14 | AB5: 0 | AC5: 6 | AD5: 8
X6: 1985 | Y6: 10. | Z6: LaVe | AA6: 18 | AB6: 3 | AC6: 9 | AD6: 23
X7: 1986 | Y7: 9. | Z7: ViVe 2 | AA7: 16 | AB7: 0 | AC7: 8 | AD7: 13
X8: 1987 | Y8: 5. | Z8: MyVe | AA8: 22 | AB8: 1 | AC8: 10 | AD8: 33 | AI8: 8.
X9: 1988 | Y9: 11. | Z9: MyVe | AA9: 20 | AB9: 1 | AC9: 3 | AD9: 22
X10: 1989 | Y10: 1. | Z10: Alku | AB10: maakuntasarja
X11: 1990 | Y11: 9. | Z11: Alku | AA11: 21 | AB11: 3 | AC11: 5 | AD11: 37 | AI11: 4.
B12: 1991 | C12: 1. | D12: LP | E12: 13 | F12: 1 | G12: 1 | H12: 23 | I12: 69
B14: 1995 | C14: 10. | D14: JoKo | E14: 24 | F14: 1 | G14: 4 | H14: 23 | I14: 133
B15: 1996 | C15: 11. | D15: JoKo | E15: 22 | F15: 1 | G15: 1 | H15: 14 | I15: 55
B16: 1997 | C16: 13. | D16: JoKo | E16: 26 | F16: 2 | G16: 7 | H16: 36 | I16: 121 | M16: 3.
B17: 1998 | C17: 5. | D17: ViVe | E17: 23 | F17: 0 | G17: 0 | H17: 19 | I17: 68
B19: 2000 | C19: 2. | D19: PuPe | E19: 26 | F19: 1 | G19: 2 | H19: 34 | I19: 101 | J19: 78.3 % | K19: 129 | M19: 10.
B20: 2001 | C20: 1. | D20: PuPe | E20: 22 | F20: 3 | G20: 2 | H20: 43 | I20: 77 | J20: 68.1 % | K20: 113 | M20: 4.
X22: 2003 | Y22: 10. | Z22: Vasama | AA22: 13 | AB22: 2 | AC22: 3 | AD22: 14 | AE22: 66 | AF22: 66.7 % | AG22: 99
X23: 2004 | Y23: 7. | Z23: Viri | AA23: 5 | AB23: 0 | AC23: 4 | AD23: 4 | AE23: 25 | AF23: 65.8 % | AG23: 38
X24: 2005 | Y24: 10. | Z24: Viri | AA24: 10 | AB24: 0 | AC24: 3 | AD24: 7 | AE24: 47 | AF24: 66.2 % | AG24: 71
X26: 2008 | Y26: 8. | Z26: Viri | AA26: 3 | AB26: 0 | AC26: 1 | AD26: 2 | AE26: 9 | AF26: 60.0 % | AG26: 15
B27: YHTEENSÄ | E27: =SUM(E4:E26) -> 156 | F27: =SUM(F4:F26) -> 9 | G27: =SUM(G4:G26) -> 17 | H27: =SUM(H4:H26) -> 192 | I27: =SUM(I4:I26) -> 624 | J27: 0.0 % | K27: =SUM(K4:K26) -> 242 | Q27: =SUM(Q4:Q26) -> 0 | R27: =SUM(R4:R26) -> 0 | S27: =SUM(S4:S26) -> 0 | T27: =SUM(T4:T26) -> 0 | U27: =SUM(U4:U26) -> 0 | V27: 0.0 % | W27: =SUM(W4:W26) -> 0 | X27: YHTEENSÄ | AA27: =SUM(AA4:AA26) -> 156 | AB27: =SUM(AB4:AB26) -> 10 | AC27: =SUM(AC4:AC26) -> 58 | AD27: =SUM(AD4:AD26) -> 174 | AE27: =SUM(AE4:AE26) -> 147 | AF27: =PRODUCT(AE27/AG27) -> 65.9 % | AG27: =SUM(AG4:AG26) -> 223 | AM27: =SUM(AM4:AM26) -> 0 | AN27: =SUM(AN4:AN26) -> 0 | AO27: =SUM(AO4:AO26) -> 0 | AP27: =SUM(AP4:AP26) -> 0 | AQ27: =SUM(AQ4:AQ26) -> 0 | AR27: 0.0 % | AS27: =SUM(AS4:AS26) -> 0
B29: KAIKKI OTTELUT | E29: OTT | F29: KUN | G29: LÖI | H29: TOI | I29: KL | J29: KL-% | L29: ka/L | M29: ka/T | N29: ka/l+t | O29: ka/kl | R29: Seurat | T29: LaVe = Lappajärven Veikot (1911) | AA29: JoKo = Jokioisten Koetus (1902)
B30: SUPERPESIS | E30: 102 | F30: 1 | G30: 3 | H30: 51 | I30: 180 | J30: 46.4 % | K30: =PRODUCT(I30/J30) -> 387.9310345 | L30: =PRODUCT((F30+G30)/E30) -> 0.04 | M30: =PRODUCT(H30/E30) -> 0.50 | N30: =PRODUCT((F30+G30+H30)/E30) -> 0.54 | O30: =PRODUCT(I30/E30) -> 1.76 | T30: MyVe = Mynämäen Vesa (1920) | AA30: PuPe = Puijon Pesäpallo (1999)
B31: YKKÖSPESIS | E31: =PRODUCT(E27+Q27) -> 156 | F31: =PRODUCT(F27+R27) -> 9 | G31: =PRODUCT(G27+S27) -> 17 | H31: =PRODUCT(H27+T27) -> 192 | I31: =PRODUCT(I27+U27) -> 624 | K31: =PRODUCT(K27+W27) -> 242 | L31: =PRODUCT((F31+G31)/E31) -> 0.17 | M31: =PRODUCT(H31/E31) -> 1.23 | N31: =PRODUCT((F31+G31+H31)/E31) -> 1.40 | O31: =PRODUCT(I31/E31) -> 4.00 | T31: ViVe = Vimpelin Veto (1934) | AA31: Vasama = Suonenjoen Vasama (1908)
B32: SUOMENSARJA | E32: =PRODUCT(AA27+AM27) -> 156 | F32: =PRODUCT(AB27+AN27) -> 10 | G32: =PRODUCT(AC27+AO27) -> 58 | H32: =PRODUCT(AD27+AP27) -> 174 | I32: =PRODUCT(AE27+AQ27) -> 147 | J32: =PRODUCT(I32/K32) -> 65.9 % | K32: =PRODUCT(AG27+AS27) -> 223 | L32: =PRODUCT((F32+G32)/E32) -> 0.44 | M32: =PRODUCT(H32/E32) -> 1.12 | N32: =PRODUCT((F32+G32+H32)/E32) -> 1.55 | O32: =PRODUCT(I32/31) -> 4.74 | T32: Alku = Forssan Alku (1913) | AA32: Viri = Leppävirran Viri (1937)
B33: YHTEENSÄ | E33: =SUM(E30:E32) -> 414 | F33: =SUM(F30:F32) -> 20 | G33: 78 | H33: 417 | I33: 951 | K33: =SUM(K30:K32) -> 852.9310345 | L33: =PRODUCT((F33+G33)/E33) -> 0.24 | M33: =PRODUCT(H33/E33) -> 1.01 | N33: =PRODUCT((F33+G33+H33)/E33) -> 1.24 | O33: =PRODUCT(I33/289) -> 3.29 | T33: LP = Loimaan Palloilijat (1931)

Sheet Kärkilyönnit
B1: KÄRKILYÖNNIT RUNKOSARJASSA | V1: VUOSITTAISET SIJOITUKSET TOP - 30
G2: 0 > 1 | J2: 1 > 2 | M2: 2 > 3 | P2: 3 > k | S2: Yhteensä
B3: Vuosi | C3: Sija | D3: Seura | E3: OTT | F3: KL | G3: YHT | H3: % | I3: KL | J3: YHT | K3: % | L3: KL | M3: YHT | N3: % | O3: KL | P3: YHT | Q3: % | R3: KL | S3: YHT | T3: % | V3: Vuosi | W3: Sija | X3: Seura | Y3: 0 > 1 | Z3: 1 > 2 | AA3: 2 > 3 | AB3: 3 > k | AC3: KL
B4: 1992 | C4: 12. | D4: LP | E4: 24 | F4: 30 | G4: 70 | H4: =PRODUCT(F4/G4) -> 42.9 % | I4: 9 | J4: 25 | K4: =PRODUCT(I4/J4) -> 36.0 % | L4: 1 | M4: 11 | N4: =PRODUCT(L4/M4) -> 9.1 % | O4: 2 | P4: 9 | Q4: =PRODUCT(O4/P4) -> 22.2 % | R4: 42 | S4: =PRODUCT(G4+J4+M4+P4) -> 115 | T4: 36.5 % | V4: 1992 | W4: 12. | X4: LP
B5: 1993 | C5: 7. | D5: LP | E5: 26 | F5: 24 | G5: 64 | H5: =PRODUCT(F5/G5) -> 37.5 % | I5: 5 | J5: 14 | K5: =PRODUCT(I5/J5) -> 35.7 % | L5: 3 | M5: 5 | N5: =PRODUCT(L5/M5) -> 60.0 % | O5: 1 | P5: 4 | Q5: =PRODUCT(O5/P5) -> 25.0 % | R5: 33 | S5: =PRODUCT(G5+J5+M5+P5) -> 87 | T5: 37.9 % | V5: 1993 | W5: 7. | X5: LP
B6: 1994 | C6: 6. | D6: LP | E6: 33 | F6: 48 | G6: 85 | H6: =PRODUCT(F6/G6) -> 56.5 % | I6: 1 | J6: 7 | K6: =PRODUCT(I6/J6) -> 14.3 % | L6: 1 | M6: 2 | N6: =PRODUCT(L6/M6) -> 50.0 % | O6: 1 | P6: 1 | Q6: =PRODUCT(O6/P6) -> 100.0 % | R6: 51 | S6: =PRODUCT(G6+J6+M6+P6) -> 95 | T6: 53.7 % | V6: 1994 | W6: 6. | X6: LP | Y6: 28.
B7: Yhteensä | E7: =SUM(E4:E6) -> 83 | F7: =SUM(F4:F6) -> 102 | G7: =SUM(G4:G6) -> 219 | H7: =PRODUCT(F7/G7) -> 46.6 % | I7: =SUM(I4:I6) -> 15 | J7: =SUM(J4:J6) -> 46 | K7: =PRODUCT(I7/J7) -> 32.6 % | L7: =SUM(L4:L6) -> 5 | M7: =SUM(M4:M6) -> 18 | N7: =PRODUCT(L7/M7) -> 27.8 % | O7: =SUM(O4:O6) -> 4 | P7: =SUM(P4:P6) -> 14 | Q7: =PRODUCT(O7/P7) -> 28.6 % | R7: =SUM(R4:R6) -> 126 | S7: =SUM(S4:S6) -> 297 | T7: =PRODUCT(R7/S7) -> 42.4 %
B9: KÄRKILYÖNNIT YLEMMISSÄ PUDOTUSPELEISSÄ | V9: VUOSITTAISET SIJOITUKSET TOP - 30
G10: 0 > 1 | J10: 1 > 2 | M10: 2 > 3 | P10: 3 > k | S10: Yhteensä
B11: Vuosi | C11: Sija | D11: Seura | E11: OTT | F11: KL | G11: YHT | H11: % | I11: KL | J11: YHT | K11: % | L11: KL | M11: YHT | N11: % | O11: KL | P11: YHT | Q11: % | R11: KL | S11: YHT | T11: % | V11: Vuosi | W11: Sija | X11: Seura | Y11: 0 > 1 | Z11: 1 > 2 | AA11: 2 > 3 | AB11: 3 > k | AC11: KL
B12: 1992 | C12: 11. | D12: LP | V12: 1992 | W12: 11. | X12: LP
B13: 1993 | C13: 7. | D13: LP | E13: 2 | F13: 2 | G13: 5 | H13: 40.0 % | I13: 0 | J13: 0 | K13: 0.0 % | L13: 0 | M13: 0 | N13: 0.0 % | O13: 0 | P13: 2 | Q13: 0.0 % | R13: 2 | S13: 7 | T13: 28.6 % | V13: 1993 | W13: 7. | X13: LP
B14: 1994 | C14: 6. | D14: LP | V14: 1994 | W14: 6. | X14: LP
B15: Yhteensä | E15: =SUM(E10:E14) -> 2 | F15: =SUM(F12:F14) -> 2 | G15: =SUM(G12:G14) -> 5 | H15: =PRODUCT(F15/G15) -> 40.0 % | I15: =SUM(I12:I14) -> 0 | J15: =SUM(J12:J14) -> 0 | K15: =PRODUCT(I15/J15) ->  | L15: =SUM(L12:L14) -> 0 | M15: =SUM(M12:M14) -> 0 | N15: =PRODUCT(L15/M15) ->  | O15: =SUM(O12:O14) -> 0 | P15: =SUM(P12:P14) -> 2 | Q15: =PRODUCT(O15/P15) -> 0.0 % | R15: =SUM(R12:R14) -> 2 | S15: =SUM(S12:S14) -> 7 | T15: =PRODUCT(R15/S15) -> 28.6 %
B17: KÄRKILYÖNNIT
G18: 0 > 1 | J18: 1 > 2 | M18: 2 > 3 | P18: 3 > k | S18: Yhteensä
E19: OTT | F19: KL | G19: YHT | H19: % | I19: KL | J19: YHT | K19: % | L19: KL | M19: YHT | N19: % | O19: KL | P19: YHT | Q19: % | R19: KL | S19: YHT | T19: %
B20: RUNKOSARJA | E20: =PRODUCT(E7) -> 83 | F20: =PRODUCT(F7) -> 102 | G20: =PRODUCT(G7) -> 219 | H20: =PRODUCT(H7) -> 46.6 % | I20: =PRODUCT(I7) -> 15 | J20: =PRODUCT(J7) -> 46 | K20: =PRODUCT(K7) -> 32.6 % | L20: =PRODUCT(L7) -> 5 | M20: =PRODUCT(M7) -> 18 | N20: =PRODUCT(N7) -> 27.8 % | O20: =PRODUCT(O7) -> 4 | P20: =PRODUCT(P7) -> 14 | Q20: =PRODUCT(Q7) -> 28.6 % | R20: =PRODUCT(R7) -> 126 | S20: =PRODUCT(S7) -> 297 | T20: =PRODUCT(T7) -> 42.4 %
B21: PLAY OFF | E21: =PRODUCT(E15) -> 2 | F21: =PRODUCT(F15) -> 2 | G21: 5 | H21: 40.0 % | I21: 0 | J21: 0 | L21: 0 | M21: 0 | O21: 0 | P21: 2 | Q21: 0.0 % | R21: 2 | S21: 7 | T21: 28.6 %
